bitfinex/quotes_SOLUSD_20220210
["timestamp","ask_amount","ask_price","bid_price","bid_amount"]
[1644492270737,48.53061008,113.85,113.76,48.6294]
[1644492270938,48.53061008,113.85,113.77,4.393]
[1644492271139,4.393,113.84,113.76,48.6294]
[1644492271539,35.21612009,113.83,113.76,48.6294]
[1644492271744,4.393,113.86,113.76,54.6294]
[1644492271944,24.1264,113.87,113.76,54.6294]
[1644492272144,4.393,113.86,113.76,54.6294]
[1644492272643,37.83437444,113.85,113.76,54.6294]
[1644492272853,37.83437444,113.85,113.77,4.393]
[1644492273449,17.5783,113.88,113.77,4.393]
[1644492273650,0.32608696,130.18,113.77,10.393]
[1644492273651,4.392,113.89,113.77,10.393]
[1644492273849,53.8801,113.9,113.77,10.393]
[1644492274452,45.1258655,113.89,113.77,10.393]
[1644492274650,46.03047086,113.87,113.77,6.0]
[1644492274850,46.03047086,113.87,113.77,17.5742]
[1644492275250,46.03047086,113.87,113.77,23.8242]
[1644492276153,46.03047086,113.87,113.77,17.8242]
[1644492276654,46.03047086,113.87,113.77,17.5742]
[1644492276855,57.51447086,113.87,113.77,4.392]
[1644492277457,41.62462102,113.85,113.77,4.392]
[1644492277655,4.393,113.84,113.77,4.392]
[1644492277855,36.59496904,113.83,113.77,4.392]
[1644492278557,47.99996904,113.83,113.77,4.392]
[1644492278973,47.99996904,113.83,113.74,4.393]
[1644492279171,12.74,113.87,113.75,12.74]
[1644492279172,4.394,113.87,113.75,12.74]
[1644492279372,4.393,113.88,113.76,4.393]
[1644492279572,4.393,113.88,113.76,63.2688]
[1644492279771,23.5659,113.9,113.78,13.1819]
[1644492279772,27.9579,113.9,113.78,13.1819]
[1644492279972,4.392,113.9,113.79,17.132]
[1644492280171,35.46530793,113.89,113.79,17.132]
[1644492280575,35.46530793,113.89,113.76,183.92973181]
[1644492280576,4.392,113.88,113.76,1.25395211]
[1644492280775,34.4672687,113.87,113.74,4.392]
[1644492280973,4.393,113.86,113.74,12.74]
[1644492281175,4.393,113.86,113.75,13.1851]
[1644492281176,36.07624465,113.85,113.75,13.1851]
[1644492281476,36.07624465,113.85,113.75,17.5781]
[1644492282578,38.12474869,113.83,113.75,17.5781]
[1644492283378,27.4846,113.87,113.75,30.3181]
[1644492283576,27.4846,113.87,113.76,23.1089]
[1644492283577,4.394,113.87,113.76,23.1089]
[1644492283776,35.8524,113.89,113.78,13.1817]
[1644492283977,4.392,113.88,113.77,23.1023]
[1644492284175,4.392,113.88,113.76,41.8489]
[1644492284176,17.132,113.88,113.76,29.1089]
[1644492284378,41.66070388,113.87,113.76,29.1089]
[1644492284577,41.66070388,113.87,113.76,23.1089]
[1644492285280,43.89192542,113.87,113.76,23.1089]
[1644492285681,4.393,113.86,113.76,23.1089]
[1644492285879,47.01877765,113.85,113.76,23.1089]
[1644492286078,4.393,113.84,113.76,23.1089]
[1644492286277,46.2992098,113.83,113.75,4.393]
[1644492286480,46.2992098,113.83,113.73,17.133]
[1644492286680,50.6932098,113.83,113.73,17.133]
[1644492286879,50.6932098,113.83,113.73,17.383]
[1644492287882,50.6932098,113.83,113.73,30.5706]
[1644492288081,46.2992098,113.83,113.73,30.5706]
[1644492288287,46.2992098,113.83,113.73,36.5706]
[1644492288480,46.2992098,113.83,113.73,30.5706]
[1644492288682,46.2992098,113.83,113.73,36.5706]
[1644492289482,46.2992098,113.83,113.73,32.1776]
[1644492289683,46.2992098,113.83,113.73,26.1776]
[1644492290481,46.2992098,113.83,113.74,4.394]
[1644492290683,46.2992098,113.83,113.76,13.1849]
[1644492291482,46.2992098,113.83,113.76,13.4349]
[1644492292483,47.7635,113.85,113.76,13.4349]
[1644492292982,13.1841,113.87,113.76,13.4349]
[1644492293283,12.74,113.88,113.76,55.6009]
[1644492293284,47.5419,113.88,113.76,55.6009]
[1644492293486,40.50219568,113.87,113.76,55.6009]
[1644492293684,4.393,113.9,113.76,143.6409]
[1644492293884,25.28194721,113.91,113.77,28.6152]
[1644492293885,24.0586,113.91,113.77,28.6152]
[1644492294085,24.0346,113.91,113.81,13.1778]
[1644492294287,28.4496,113.91,113.81,13.4278]
[1644492294485,41.6289,113.91,113.81,13.4278]
[1644492294686,42.15325215,113.9,113.81,13.4278]
[1644492294886,46.54425215,113.9,113.81,13.4278]
[1644492295185,0.024,113.91,113.82,4.391]
[1644492295385,0.024,113.91,113.84,13.1754]
[1644492295589,4.414,113.92,113.84,13.1754]
[1644492295788,4.39,113.92,113.84,13.1754]
[1644492295988,4.414,113.92,113.84,13.1754]
[1644492296187,43.60886002,113.91,113.84,13.1754]
[1644492297186,4.414,113.92,113.84,13.1754]
[1644492297390,0.024,113.92,113.84,13.4254]
[1644492297588,0.024,113.92,113.84,33.7804]
[1644492297787,0.024,113.92,113.84,34.0304]
[1644492297986,4.414,113.94,113.84,34.0304]
[1644492298187,45.30980011,113.93,113.84,34.0304]
[1644492298991,45.30980011,113.93,113.84,33.7804]
[1644492299193,45.30980011,113.93,113.84,40.0304]
[1644492300090,45.30980011,113.93,113.85,4.39]
[1644492300290,45.30980011,113.93,113.87,13.173]
[1644492300491,45.30980011,113.93,113.84,56.65]
[1644492300690,45.30980011,113.93,113.83,4.389]
[1644492300892,4.414,113.92,113.82,36.172]
[1644492301094,39.82741149,113.91,113.82,36.422]
[1644492301290,39.82741149,113.91,113.83,4.391]
[1644492301790,39.82741149,113.91,113.82,40.562]
[1644492302191,39.82741149,113.91,113.82,40.812]
[1644492302594,39.82741149,113.91,113.82,40.562]
[1644492302792,47.10141149,113.91,113.82,40.562]
[1644492302991,40.49613952,113.89,113.82,23.432]
[1644492303194,4.391,113.88,113.81,22.5478]
[1644492303394,4.391,113.9,113.81,22.5478]
[1644492303696,51.9908,113.91,113.81,22.5478]
[1644492303894,13.1791,113.9,113.81,35.7275]
[1644492304296,54.07815125,113.9,113.81,35.9775]
[1644492304594,54.07815125,113.9,113.81,35.7275]
[1644492304995,54.07815125,113.9,113.82,4.391]
[1644492305219,54.07815125,113.9,113.83,13.1776]
[1644492305801,38.67536133,113.88,113.79,22.6585]
[1644492306501,38.67536133,113.88,113.8,4.392]
[1644492306803,43.06736133,113.88,113.79,22.6585]
[1644492307001,38.67536133,113.88,113.79,22.6585]
[1644492307804,38.67536133,113.88,113.81,13.1799]
[1644492308104,13.1801,113.89,113.81,13.1799]
[1644492308404,51.9908,113.91,113.81,13.1799]
[1644492309003,51.9908,113.91,113.81,19.1799]
[1644492309203,45.01827004,113.9,113.81,23.5709]
[1644492309404,58.19627004,113.9,113.81,23.5709]
[1644492310905,58.19627004,113.9,113.81,17.5709]
[1644492311506,4.391,113.89,113.81,13.1799]
[1644492311703,61.8474465,113.88,113.81,13.1799]
[1644492311904,72.2314465,113.88,113.81,13.1799]
[1644492313427,61.8474465,113.88,113.81,13.1799]
[1644492316932,48.6669465,113.88,113.81,25.9199]
[1644492317330,51.9908,113.91,113.81,25.9199]
[1644492317530,47.5998,113.91,113.81,48.7384]
[1644492317930,48.84714721,113.91,113.81,48.7384]
[1644492318129,47.5998,113.91,113.81,48.7384]
[1644492318330,35.10246934,113.9,113.81,48.7384]
[1644492318732,48.28016934,113.9,113.81,48.7384]
[1644492319632,13.1777,113.9,113.81,48.7384]
[1644492319835,60.7761,113.91,113.82,4.391]
[1644492320032,60.7761,113.91,113.84,13.1754]
[1644492320033,47.5998,113.91,113.84,13.1754]
[1644492320234,47.5758,113.91,113.84,30.3054]
[1644492320834,93.65717869,113.91,113.84,30.3054]
[1644492321034,93.65717869,113.91,113.84,25.9154]
[1644492325842,46.08137869,113.91,113.84,25.9154]
[1644492327646,59.25767869,113.91,113.84,25.9154]
[1644492330151,60.5050259,113.91,113.84,25.9154]
[1644492330750,59.25767869,113.91,113.84,25.9154]
[1644492331851,46.08137869,113.91,113.84,30.3054]
[1644492332153,14.44634721,113.92,113.84,30.3054]
[1644492332552,13.199,113.92,113.84,30.3054]
[1644492333258,39.76756875,113.91,113.84,30.3054]
[1644492334758,39.76756875,113.91,113.84,25.9154]
[1644492335559,17.589,113.92,113.84,25.9154]
[1644492335762,0.024,113.92,113.84,35.2604]
[1644492335960,0.024,113.93,113.84,35.2604]
[1644492336162,0.024,113.92,113.85,4.39]
[1644492336362,0.024,113.93,113.87,13.1725]
[1644492336561,0.024,113.92,113.87,13.1725]
[1644492336763,44.57804125,113.93,113.87,13.1725]
[1644492337763,24.81694721,113.94,113.87,13.1725]
[1644492337962,1.24734721,113.94,113.87,13.1725]
[1644492338162,1.24734721,113.94,113.87,25.9125]
[1644492338361,1.27134721,113.95,113.87,25.9125]
[1644492338764,36.93144727,113.94,113.87,25.9125]
[1644492341770,0.024,113.95,113.87,25.9125]
[1644492341970,0.024,113.96,113.88,4.389]
[1644492342172,25.02,113.97,113.9,13.168]
[1644492342371,1.27134721,113.98,113.91,4.388]
[1644492342771,34.58544323,113.97,113.91,4.388]
[1644492343170,34.58544323,113.97,113.93,13.1668]
[1644492346276,24.6503,113.99,113.93,13.1668]
[1644492346491,24.6263,113.99,113.93,13.1668]
[1644492346892,26.24744721,114.0,113.93,13.1668]
[1644492346893,25.0001,114.0,113.93,13.1668]
[1644492347091,24.9761,114.0,113.93,13.1668]
[1644492347697,46.89242663,113.99,113.93,13.1668]
[1644492348494,25.0001,114.0,113.93,13.1668]
[1644492348696,24.9761,114.0,113.93,13.1668]
[1644492349497,45.81751694,113.99,113.93,13.1668]
[1644492363707,50.20351694,113.99,113.93,13.1668]
[1644492366011,51.45086415,113.99,113.93,13.1668]
[1644492366511,47.06486415,113.99,113.93,13.1668]
[1644492366709,60.23306415,113.99,113.93,13.1668]
[1644492367511,47.06486415,113.99,113.93,13.1668]
[1644492367712,45.81751694,113.99,113.93,13.1668]
[1644492372023,26.24744721,114.0,113.93,13.1668]
[1644492372220,26.22344721,114.0,113.93,13.1668]
[1644492372420,26.22344721,114.0,113.94,4.386]
[1644492372619,26.22344721,114.0,113.95,13.1634]
[1644492372620,24.9761,114.0,113.95,13.1634]
[1644492372820,1.27134721,114.01,113.95,13.1634]
[1644492373225,36.24074611,114.01,113.95,13.1634]
[1644492374524,1.27134721,114.01,113.95,13.1634]
[1644492375525,46.30859156,114.0,113.95,13.1634]
[1644492376525,1.27134721,114.01,113.95,13.1634]
[1644492377326,1.24734721,114.0,113.95,13.1634]
[1644492377526,49.42746495,114.0,113.95,13.1634]
[1644492379326,48.18011774,114.0,113.95,13.1634]
[1644492379527,49.42746495,114.0,113.95,13.1634]
[1644492380328,48.18011774,114.0,113.95,13.1634]
[1644492380528,49.42746495,114.0,113.95,13.1634]
[1644492381030,48.18011774,114.0,113.95,13.1634]
[1644492381231,49.42746495,114.0,113.95,13.1634]
[1644492382230,48.18011774,114.0,113.95,13.1634]
[1644492383332,49.42746495,114.0,113.95,13.1634]
[1644492385633,48.18011774,114.0,113.95,13.1634]
[1644492385833,1.27134721,114.01,113.95,13.1634]
[1644492386831,37.2946552,114.0,113.95,13.1634]
[1644492387332,1.27134721,114.01,113.95,13.1634]
[1644492388232,47.32618568,114.01,113.95,13.1634]
[1644492389134,47.32618568,114.01,113.95,17.5494]
[1644492389735,1.27134721,114.01,113.95,17.5494]
[1644492389935,0.024,114.01,113.95,17.5494]
[1644492390135,25.19624721,114.02,113.95,17.5494]
[1644492390337,1.27134721,114.02,113.95,17.5494]
[1644492390635,1.24734721,114.02,113.95,59.8425]
[1644492390834,1.24734721,114.02,113.97,13.1592]
[1644492391037,1.24734721,114.03,113.97,13.1592]
[1644492391636,1.24734721,114.03,113.97,35.7034]
[1644492392234,1.24734721,114.03,113.97,35.9534]
[1644492392435,1.27134721,114.04,113.97,35.9534]
[1644492392635,1.24734721,114.04,113.97,35.9534]
[1644492395139,1.24734721,114.04,113.98,4.385]
[1644492395338,1.24734721,114.04,113.99,13.1575]
[1644492395543,1.24734721,114.05,113.99,13.1575]
[1644492395745,1.24734721,114.04,113.99,13.1575]
[1644492396645,1.24734721,114.05,113.99,13.1575]
[1644492396843,42.62356972,114.06,113.99,13.1575]
[1644492397443,1.24734721,114.05,113.99,13.1575]
[1644492403675,5.63234721,114.04,113.99,13.1575]
[1644492403876,5.63234721,114.04,113.98,13.1626]
[1644492404076,1.24734721,114.04,113.98,13.1626]
[1644492404284,34.36309598,114.02,113.98,13.1626]
[1644492404676,47.52569598,114.02,113.98,13.1626]
[1644492405780,1.27134721,114.04,113.98,13.1626]
[1644492405984,25.95764721,114.05,113.98,13.1626]
[1644492406180,25.98164721,114.05,113.98,13.1626]
[1644492406380,1.24734721,114.04,113.98,13.1626]
[1644492406784,48.73288555,114.03,113.98,13.1626]
[1644492407982,14.40894721,114.04,113.98,13.1626]
[1644492408982,52.27228311,114.04,113.98,13.1626]
[1644492409285,1.24734721,114.03,113.98,13.1626]
[1644492409483,52.27228311,114.04,113.98,13.1626]
[1644492409683,1.24734721,114.03,113.98,13.1626]
[1644492411289,14.40944721,114.03,113.98,13.1626]
[1644492411687,1.24734721,114.02,113.98,13.1626]
[1644492411990,14.40944721,114.03,113.98,13.1626]
[1644492412587,1.24734721,114.03,113.98,13.1626]
[1644492414995,1.24734721,114.04,113.98,13.1626]
[1644492415196,25.95764721,114.05,113.98,13.1626]
[1644492415796,1.24734721,114.04,113.98,13.1626]
[1644492416197,1.27134721,114.05,113.98,13.1626]
[1644492416397,1.24734721,114.05,113.98,13.4126]
[1644492417398,1.24734721,114.05,113.98,17.7976]
[1644492418396,1.24734721,114.05,113.98,13.1626]
[1644492418600,1.24734721,114.04,113.98,13.1626]
[1644492418798,1.27134721,114.05,113.98,13.1626]
[1644492418998,1.24734721,114.05,113.98,13.1626]
[1644492419799,1.24734721,114.05,113.98,13.4126]
[1644492421304,1.24734721,114.05,113.98,19.4126]
[1644492421517,1.24734721,114.04,113.98,19.4126]
[1644492421725,1.24734721,114.04,113.98,23.7976]
[1644492424525,1.24734721,114.04,113.98,17.7976]
[1644492424727,1.27134721,114.05,113.98,30.5376]
[1644492424927,1.24734721,114.05,113.98,44.8296]
[1644492425125,2.49439509,114.09,113.99,22.6514]
[1644492425126,1.24734721,114.06,113.99,22.6514]
[1644492425327,0.024,114.06,114.01,13.153]
[1644492425529,1.24734721,114.07,114.01,48.3939]
[1644492426730,1.24734721,114.07,114.02,4.384]
[1644492427027,1.24734721,114.07,114.01,48.3939]
[1644492427230,1.24734721,114.07,114.01,35.6539]
[1644492427427,1.24734721,114.07,114.01,40.0379]
[1644492428428,1.24734721,114.07,114.01,35.6539]
[1644492428830,1.24734721,114.06,114.01,35.6539]
[1644492429930,1.24734721,114.07,114.01,35.6539]
[1644492430131,1.24734721,114.07,114.01,40.0379]
[1644492431535,1.27134721,114.08,114.02,4.384]
[1644492431732,38.03195513,114.09,114.03,13.1539]
[1644492431933,38.00795513,114.09,114.03,13.1539]
[1644492432334,51.16305513,114.09,114.03,13.1539]
[1644492432535,1.24734721,114.08,114.03,13.1539]
[1644492435836,42.39095513,114.09,114.03,13.1539]
[1644492436035,1.24734721,114.08,114.03,13.1539]
[1644492438838,1.27134721,114.1,114.03,38.97666214]
[1644492439038,1.24734721,114.1,114.04,4.383]
[1644492439239,22.8645,114.14,114.05,13.1501]
[1644492439240,1.27134721,114.12,114.05,13.1501]
[1644492439439,0.024,114.11,114.05,13.1501]
[1644492439639,35.02581652,114.11,114.05,13.1501]
[1644492440261,35.02581652,114.11,114.05,19.1501]
[1644492440540,36.27316373,114.11,114.05,13.1501]
[1644492440939,35.02581652,114.11,114.05,13.1501]
[1644492441141,36.27316373,114.11,114.05,13.1501]
[1644492442144,36.27316373,114.11,114.0,6.33866214]
[1644492442145,61.05716373,114.11,114.0,6.33866214]
[1644492442344,1.24734721,114.09,113.99,22.9112]
[1644492442648,39.67250995,114.07,113.98,24.4568]
[1644492442945,4.385,114.06,113.96,23.7792]
[1644492443146,0.024,114.06,113.97,4.385]
[1644492443344,0.024,114.05,113.97,4.385]
[1644492443544,13.1838,114.06,113.97,4.385]
[1644492444446,14.43114721,114.06,113.97,4.385]
[1644492444846,4.385,114.05,113.97,13.1595]
[1644492445045,4.409,114.05,113.97,13.1595]
[1644492446048,0.024,114.05,113.98,4.385]
[1644492446247,14.43114721,114.06,113.98,17.5435]
[1644492446448,13.1838,114.06,113.98,13.1585]
[1644492447249,14.43114721,114.06,113.98,13.1585]
[1644492453465,18.81614721,114.06,113.98,13.1585]
[1644492453666,18.81614721,114.06,113.97,13.1605]
[1644492453867,1.27134721,114.05,113.97,13.1605]
[1644492454068,14.40804721,114.05,113.97,13.1605]
[1644492454268,14.43204721,114.05,113.97,13.1605]
[1644492455381,14.43204721,114.05,113.96,41.326]
[1644492456685,4.385,114.04,113.96,41.326]
[1644492456888,57.02151848,114.03,113.95,13.1629]
[1644492457084,57.02151848,114.03,113.94,22.8669]
[1644492457286,58.26886569,114.03,113.94,22.8669]
[1644492457587,14.41034721,114.03,113.94,22.8669]
[1644492457785,1.24734721,114.03,113.94,22.8669]
[1644492457987,4.385,114.04,113.95,12.74]
[1644492458190,26.13114721,114.05,113.95,12.74]
[1644492458191,24.8838,114.05,113.96,4.386]
[1644492458386,24.8838,114.05,113.96,23.7974]
[1644492458586,47.2593486,114.04,113.96,23.7974]
[1644492459787,64.8056486,114.04,113.96,36.9594]
[1644492460190,66.05299581,114.04,113.96,36.9594]
[1644492460388,64.8056486,114.04,113.96,36.9594]
[1644492460990,60.4206486,114.04,113.96,36.9594]
[1644492461591,61.66799581,114.04,113.96,36.9594]
[1644492461792,60.4206486,114.04,113.96,36.9594]
[1644492463695,64.8056486,114.04,113.96,36.9594]
[1644492463897,66.05299581,114.04,113.96,36.9594]
[1644492464098,64.8056486,114.04,113.96,36.9594]
[1644492464996,60.4206486,114.04,113.96,36.9594]
[1644492466197,47.2593486,114.04,113.96,36.9594]
[1644492466802,24.8838,114.05,113.96,57.90507113]
[1644492467002,24.8838,114.05,113.97,4.385]
[1644492467205,24.8838,114.05,113.99,13.1592]
[1644492467402,24.8598,114.05,113.99,13.1592]
[1644492467804,64.75915479,114.05,113.99,13.1592]
[1644492469105,77.91895479,114.05,113.99,13.1592]
[1644492470106,24.8598,114.05,113.99,13.1592]
[1644492471110,38.54076987,114.04,113.99,13.1592]
[1644492474128,1.27134721,114.06,113.99,13.1592]
[1644492474329,1.24734721,114.06,113.99,17.5442]
[1644492474527,1.24734721,114.06,113.99,32.23987113]
[1644492474934,1.24734721,114.07,113.99,32.23987113]
[1644492475130,42.64176997,114.06,113.99,27.85487113]
[1644492475327,42.64176997,114.06,113.99,33.85487113]
[1644492475529,42.64176997,114.06,113.99,27.85487113]
[1644492476129,1.24734721,114.07,113.99,27.85487113]
[1644492476332,1.24734721,114.07,114.0,4.384]
[1644492476531,1.24734721,114.07,114.02,13.1547]
[1644492476729,1.27134721,114.08,114.02,13.1547]
[1644492477029,1.24734721,114.08,114.02,17.5387]
[1644492477230,44.35115538,114.07,114.02,17.5387]
[1644492478132,1.27134721,114.08,114.02,17.5387]
[1644492478331,1.24734721,114.08,114.02,17.5387]
[1644492478530,1.27134721,114.09,114.02,17.5387]
[1644492478730,1.24734721,114.09,114.02,17.5387]
[1644492479132,45.09970335,114.08,114.02,17.5387]
[1644492480431,45.09970335,114.08,114.02,17.7887]
[1644492481437,0.024,114.1,114.02,19.74437113]
[1644492481632,14.42424721,114.11,114.02,19.74437113]
[1644492482433,39.61249147,114.1,114.03,23.3086]
[1644492482634,39.61249147,114.1,114.05,13.1523]
[1644492484235,40.85983868,114.1,114.05,13.1523]
[1644492484636,39.61249147,114.1,114.05,13.1523]
[1644492484835,40.85983868,114.1,114.05,13.1523]
[1644492486039,39.61249147,114.1,114.05,13.1523]
[1644492486643,5.65434721,114.11,114.05,13.1523]
[1644492486841,1.24734721,114.11,114.05,13.1523]
[1644492487443,1.24734721,114.11,114.05,24.7603]
[1644492487741,0.024,114.12,114.06,4.382]
[1644492487943,1.24734721,114.13,114.07,13.1482]
[1644492488141,1.27134721,114.13,114.07,13.1482]
[1644492488346,1.24734721,114.13,114.07,13.1482]
[1644492488543,1.27134721,114.14,114.07,19.1482]
[1644492488743,1.24734721,114.14,114.08,12.74]
[1644492488942,0.024,114.14,114.08,50.0097]
[1644492489145,1.27134721,114.15,114.09,13.1449]
[1644492489342,0.024,114.15,114.09,19.1449]
[1644492489541,5.62834721,114.16,114.09,13.1449]
[1644492489745,0.024,114.16,114.09,17.5259]
[1644492490042,63.33536574,114.17,114.09,17.5259]
[1644492491345,25.86974721,114.17,114.09,17.5259]
[1644492491545,1.27134721,114.17,114.09,30.2659]
[1644492491747,0.024,114.17,114.09,47.56368897]
[1644492491944,25.57884721,114.18,114.09,47.56368897]
[1644492491945,24.3555,114.18,114.09,47.56368897]
[1644492492245,0.024,114.17,114.1,26.9991]
[1644492492444,0.024,114.18,114.12,13.1418]
[1644492492644,0.024,114.17,114.12,13.1418]
[1644492492848,4.38,114.16,114.1,60.0322]
[1644492493047,0.024,114.17,114.1,60.0322]
[1644492493248,0.024,114.18,114.11,6.32578897]
[1644492493446,0.024,114.17,114.12,12.74]
[1644492493649,0.024,114.2,114.13,4.38]
[1644492493850,0.024,114.21,114.14,12.74]
[1644492494049,1.46787078,114.26,114.15,4.378]
[1644492494050,0.024,114.23,114.15,4.378]
[1644492494251,0.024,114.25,114.16,12.74]
[1644492494448,0.024,114.23,114.16,12.74]
[1644492494747,1.27134721,114.25,114.16,25.8753]
[1644492494946,0.024,114.23,114.16,25.8753]
[1644492495146,1.27134721,114.25,114.16,25.8753]
[1644492495346,46.05783532,114.23,114.16,12.74]
[1644492495652,0.024,114.23,114.16,12.74]
[1644492496046,0.024,114.24,114.16,12.74]
[1644492496246,5.64934721,114.25,114.16,12.74]
[1644492496449,47.51809359,114.24,114.16,12.74]
[1644492496646,47.51809359,114.24,114.15,13.139]
[1644492496852,0.024,114.23,114.15,13.139]
[1644492497048,0.024,114.23,114.15,25.879]
[1644492497850,0.024,114.23,114.15,12.74]
[1644492498048,4.402,114.23,114.15,12.74]
[1644492498650,4.402,114.23,114.13,13.1411]
[1644492498850,13.1677,114.22,114.13,12.74]
[1644492499050,4.378,114.21,114.13,12.74]
[1644492499250,43.74344188,114.2,114.13,12.74]
[1644492499452,53.32044188,114.2,114.13,12.74]
[1644492499650,4.378,114.19,114.13,12.74]
[1644492500852,4.378,114.19,114.11,37.937]
[1644492501151,4.402,114.19,114.11,37.937]
[1644492503553,4.402,114.19,114.09,12.74]
[1644492503752,4.402,114.19,114.07,26.9131]
[1644492503753,27.3103,114.19,114.07,26.9131]
[1644492503952,28.55764721,114.19,114.07,22.5331]
[1644492504555,40.4569,114.19,114.07,35.6811]
[1644492504755,41.70424721,114.19,114.07,35.6811]
[1644492504955,41.70424721,114.19,114.07,22.5331]
[1644492505557,1.24734721,114.18,114.07,22.5331]
[1644492505756,47.5541186,114.16,114.07,22.5331]
[1644492505957,47.5781186,114.16,114.07,22.5331]
[1644492506756,47.5781186,114.16,114.07,35.6811]
[1644492506958,51.9591186,114.16,114.07,35.6811]
[1644492508185,47.5781186,114.16,114.08,4.381]
[1644492508685,47.5781186,114.16,114.08,17.778]
[1644492508885,47.5781186,114.16,114.09,12.74]
[1644492509086,47.5541186,114.16,114.1,4.381]
[1644492509386,47.5541186,114.16,114.09,35.6455]
[1644492509584,47.5541186,114.16,114.09,48.7911]
[1644492509787,47.5541186,114.16,114.09,35.6455]
[1644492509985,47.5541186,114.16,114.09,22.9055]
[1644492511386,51.9351186,114.16,114.09,22.9055]
[1644492512786,47.5541186,114.16,114.09,22.9055]
[1644492513889,70.9982186,114.16,114.09,22.9055]
[1644492514088,4.381,114.15,114.09,22.9055]
[1644492514289,60.7272186,114.16,114.09,22.9055]
[1644492514488,65.0842186,114.16,114.09,22.9055]
[1644492515286,66.33156581,114.16,114.09,22.9055]
[1644492515690,61.95056581,114.16,114.09,22.9055]
[1644492515890,60.7032186,114.16,114.09,22.9055]
[1644492516091,61.95056581,114.16,114.09,22.9055]
[1644492516490,47.5541186,114.16,114.09,22.9055]
[1644492516692,47.5541186,114.16,114.09,35.6455]
[1644492516892,47.5541186,114.16,114.09,49.0423]
[1644492517092,47.5541186,114.16,114.09,54.7923]
[1644492517893,47.5541186,114.16,114.09,59.1733]
[1644492518093,0.024,114.17,114.09,59.1733]
[1644492518293,0.024,114.18,114.09,68.63008897]
[1644492518493,0.024,114.17,114.09,68.63008897]
[1644492518694,0.024,114.18,114.1,23.9493]
[1644492518897,0.024,114.17,114.12,13.1412]
[1644492519098,0.024,114.18,114.13,4.38]
[1644492519295,0.024,114.2,114.14,12.74]
[1644492519494,0.024,114.21,114.15,4.378]
[1644492519698,43.46797694,114.22,114.14,18.74]
[1644492519895,43.46797694,114.22,114.14,12.74]
[1644492520198,43.46797694,114.22,114.15,13.1375]
[1644492520397,0.024,114.24,114.15,17.7655]
[1644492520596,0.024,114.25,114.16,12.74]
[1644492520796,0.024,114.23,114.16,12.74]
[1644492520996,4.402,114.25,114.15,17.517]
[1644492521196,0.024,114.23,114.15,27.5537]
[1644492521395,4.378,114.22,114.15,27.5537]
[1644492521598,4.378,114.22,114.15,23.1757]
[1644492521797,6.60922154,114.22,114.14,12.74]
[1644492521997,16.25422154,114.22,114.13,12.74]
[1644492522197,23.96,114.21,114.11,36.6275]
[1644492522397,4.402,114.2,114.11,36.6275]
[1644492522596,42.53033528,114.19,114.11,36.6275]
[1644492522799,55.30355682,114.19,114.11,23.8875]
[1644492522997,12.77322154,114.19,114.12,14.68578897]
[1644492523196,10.518,114.19,114.13,12.74]
[1644492523398,10.518,114.19,114.13,12.99]
[1644492523598,10.518,114.19,114.14,15.08478897]
[1644492523798,0.024,114.2,114.15,12.74]
[1644492524001,44.04604894,114.19,114.15,12.74]
[1644492524801,0.024,114.21,114.15,12.74]
[1644492525099,0.024,114.23,114.16,4.378]
[1644492525307,0.22052357,114.26,114.16,4.378]
[1644492525308,0.024,114.24,114.17,24.5978]
[1644492525499,0.22052357,114.26,114.17,24.5978]
[1644492525500,0.024,114.25,114.17,24.5978]
[1644492525800,0.22052357,114.26,114.17,24.5978]
[1644492525801,0.24452357,114.26,114.17,24.5978]